Cogmind - Beta 15 @@@ ROGUE MODE // 2025.05.09 @ 11:20:49 Player: NuclearMayhem Result: Self-destructed Performance ------------- Evolutions (3) 1500 Regions Visited (11) 2200 Robots Destroyed (59) 295 Value Destroyed (3210) 3210 Prototype IDs (26) 520 Alien Tech Used (0) 0 Bonus (1975) 1975 TOTAL SCORE: 9700 Bonus ------- High Alert Combat Kills 375 Follower Combat Kills 1458 Entered Garrisons 200 Aligned with FarCom 300 Friendly Fire -358 Cogmind --------- Core Integrity 5/700 Matter 288/300 Energy 65/100 System Corruption 2% Temperature Cool (0) Movement Core (50) Location -7/Storage Parts ------- > --- POWER (1) -------- (None) > --- PROPULSION (3) --- (None) > --- UTILITY (7) ------ (None) > --- WEAPON (2) ------- (None) > --- INVENTORY (5) ---- Relay Coupler [Duelist] (31) Relay Coupler [Sentry] (26) Relay Coupler [Specialist] (23) Relay Coupler [Specialist] (29) Relay Coupler [Specialist] (31) Peak State ------------ > --- POWER ------------ Improved Deuterium Engine > --- PROPULSION ------- Armored Wheel Armored Huge Wheel > --- UTILITY ---------- High-capacity Storage Unit Army-in-a-Box > --- WEAPON ----------- Gauss Rifle Gauss Rifle > --- INVENTORY -------- Relay Coupler [NC] Relay Coupler [NC] Relay Coupler [NC] Relay Coupler [Swarmer] Relay Coupler [Swarmer] Relay Coupler [Swarmer] Relay Coupler [Swarmer] Relay Coupler [Grunt] Relay Coupler [Brawler] Relay Coupler [Brawler] Relay Coupler [Duelist] Relay Coupler [Sentry] Relay Coupler [Sentry] Relay Coupler [Sentry] Relay Coupler [Specialist] Relay Coupler [Specialist] Relay Coupler [Specialist] Relay Coupler [Heavy] Relay Coupler [Heavy] Relay Coupler [Behemoth] [Rating: 84] Favorites ----------- Power Micro Nuclear Core Engine Improved Deuterium Engine Power Core Micro Nuclear Core Propulsion Armored Huge Wheel Leg Aluminum Leg Wheel Armored Huge Wheel Utility High-capacity Storage Unit Device Army-in-a-Box Storage High-capacity Storage Unit Protection Medium Reactive Plating Weapon Gauss Rifle Energy Gun Lightning Gun Energy Cannon Advanced Beam Cannon Ballistic Gun Gauss Rifle Ballistic Cannon Assault Cannon Launcher Advanced EMP Blaster Special Melee Weapon Datajack Build | -11 -10 -10 -9 -9 -9 -8 -8 -7 -7 -7 -7 ------- Run | Yrd Mat Min Mat Min Exi Min Mat Fac Gar Fac Sto Slots Evolved 6 | . . . 2 . . . 2 2 . . . Power . | . . . . . . . . . . . . Propulsion 1 | . . . 1 . . . . . . . . Utility 5 | . . . 1 . . . 2 2 . . . Weapon . | . . . . . . . . . . . . Parts Attached 52 | 7 1 2 13 14 1 1 3 1 1 5 3 Power 7 | 2 . . 3 2 . . . . . . . Engine 3 | 2 . . . 1 . . . . . . . Core 4 | . . . 3 1 . . . . . . . Reactor . | . . . . . . . . . . . . Propulsion 11 | 2 . 1 2 3 . . 1 . . 1 1 Treads . | . . . . . . . . . . . . Leg 5 | 2 . 1 2 . . . . . . . . Wheel 6 | . . . . 3 . . 1 . . 1 1 Hover . | . . . . . . . . . . . . Flight . | . . . . . . . . . . . . Utility 16 | 1 . 1 3 4 1 1 1 1 1 1 1 Device 3 | . . 1 . 1 . . . . 1 . . Storage 4 | 1 . . . . 1 . . 1 . 1 . Processor . | . . . . . . . . . . . . Hackware . | . . . . . . . . . . . . Protection 9 | . . . 3 3 . 1 1 . . . 1 Artifact . | . . . . . . . . . . . . Weapon 18 | 2 1 . 5 5 . . 1 . . 3 1 Energy Gun 5 | 1 . . 3 1 . . . . . . . Energy Cannon 1 | . . . 1 . . . . . . . . Ballistic Gun 8 | 1 1 . 1 3 . . . . . 2 . Ballistic Cannon 2 | . . . . 1 . . 1 . . . . Launcher 1 | . . . . . . . . . . . 1 Special Weapon . | . . . . . . . . . . . . Impact Weapon . | . . . . . . . . . . . . Slashing Weapon . | . . . . . . . . . . . . Piercing Weapon . | . . . . . . . . . . . . Special Melee Weapon 1 | . . . . . . . . . . 1 . Unidentified Prototypes 3 | . . . 1 . . . . . . 1 1 Parts Lost 24 | . 1 . 7 9 . . . . . . 7 Power 3 | . . . 1 1 . . . . . . 1 Propulsion 8 | . . . 2 3 . . . . . . 3 Utility 5 | . . . 1 3 . . . . . . 1 Weapon 8 | . 1 . 3 2 . . . . . . 2 Highest Loss Streak 7 | . 1 . 6 6 . . . . . . 7 To Critical Strikes . | . . . . . . . . . . . . Average Backups 12 | 3 6 7 6 7 6 9 11 13 18 19 18 Power 2 | . 1 1 1 2 2 3 3 4 3 . . Propulsion 1 | 2 4 4 2 1 1 1 1 2 1 . . Utility 6 | . . . 1 . . 1 1 1 10 18 17 Weapon 2 | . 1 1 . 3 2 4 4 6 3 . . Tool/Special . | . . . . . . . . . . . . Unused Backups 36 | . . 1 1 2 . . . . 12 3 17 Power 3 | . . . . . . . . . 3 . . Propulsion 3 | . . 1 1 1 . . . . . . . Utility 24 | . . . . . . . . . 4 3 17 Weapon 6 | . . . . 1 . . . . 5 . . Tool/Special . | . . . . . . . . . . . . Average Slot Usage (%) 70 | . 85 96 92 84 88 84 76 69 53 53 48 Engine 3 | . 14 14 . . . . . . 1 7 5 Core 5 | . . . 7 10 11 11 9 7 5 . . Leg 6 | . 28 28 30 3 . . . . . . . Wheel 13 | . . . . 18 22 22 18 15 15 15 13 Device 5 | . . 10 . 5 . . . . 6 7 4 Storage 9 | . 14 14 11 11 11 11 9 7 7 7 7 Protection 7 | . . . 20 14 22 18 22 23 . . 1 Energy Gun 3 | . 12 . 7 9 11 11 1 . . . . Ballistic Gun 11 | . 15 28 13 11 11 11 9 7 7 9 3 Ballistic Cannon 2 | . . . . 1 . . 7 7 7 . . Special Melee Weapon 1 | . . . . . . . . . . 4 6 Peak Build Rating 84 | 6 6 8 18 30 34 34 38 39 83 84 81 Average Rating 48 | 4 5 7 14 24 30 31 36 38 80 81 60 On Entrance 31 | . 6 6 8 15 29 34 34 38 38 83 81 Naked Turns 6 | . . . . . . . . . . . 6 Heaviest Build 139 | 13 14 14 23 44 79 79 90 90 139 139 137 Greatest Support 40 | 20 20 20 30 38 38 38 40 40 40 40 40 Greatest Overweight (x) 3 | 1 . . 1 1 2 2 2 2 3 3 3 Average Overweight (x) 1 | . . . . . 1 1 1 2 3 3 2 Largest Inventory Capacity 20 | 8 8 8 8 8 20 20 20 20 20 20 20 Average Capacity 15 | 7 8 8 8 8 14 20 20 20 20 20 19 Most Carried 20 | 6 7 8 8 8 14 14 18 18 20 20 20 Average Carried 13 | 4 6 7 6 7 7 14 16 18 18 19 19 Final Capacity 20 | 8 8 8 8 8 20 20 20 20 20 20 5 Final Carried 20 | 6 6 8 5 8 14 14 18 18 20 20 5 Class Distribution -------------------- 100% | Mutant Dominant Class ---------------- Mutant | -10/Materials Mutant | -10/Mines Mutant | -9/Materials Mutant | -9/Mines Mutant | -9/Exiles Mutant | -8/Mines Mutant | -8/Materials Mutant | -7/Factory Mutant | -7/Garrison Mutant | -7/Factory Mutant | -7/Storage Resources | -11 -10 -10 -9 -9 -9 -8 -8 -7 -7 -7 -7 ----------- Run | Yrd Mat Min Mat Min Exi Min Mat Fac Gar Fac Sto Matter Collected 1911 | 248 86 64 239 333 . 56 38 . 684 71 92 Remotely . | . . . . . . . . . . . . Salvage Created 2486 | . 202 91 383 333 . 277 141 . 357 20 682 Parts 111 | . 12 6 23 18 . 11 12 . 11 . 18 Haulers Intercepted 2 | . 1 . . . . . . . . . 1 Recyclers Shooed 1 | . . . . . . 1 . . . . . Parts Field Recycled . | . . . . . . . . . . . . Retrieved Matter . | . . . . . . . . . . . . Parts Self-Destructed . | . . . . . . . . . . . . Prevented . | . . . . . . . . . . . . Kills | -11 -10 -10 -9 -9 -9 -8 -8 -7 -7 -7 -7 ------- Run | Yrd Mat Min Mat Min Exi Min Mat Fac Gar Fac Sto Combat Hostiles Destroyed 49 | . 3 2 10 12 . 1 6 . 5 . 10 Guns 34 | . 3 2 10 11 . 1 4 . 3 . . Cannons 5 | . . . . 1 . . 2 . 2 . . AOE 7 | . . . . . . . . . . . 7 Classes Destroyed 16 | . 3 . 3 2 . 2 . . 2 . 4 Worker 2 | . . . 1 . . . . . . 1 . Builder 1 | . . . . . . . . . . . 1 Hauler 2 | . 1 . . . . . . . . . 1 Recycler 3 | . . . . . . 3 . . . . . Operator 1 | . 1 . . . . . . . . . . Drone 4 | . . . . . . . . . 2 . 2 Swarmer 11 | . . . 3 5 . . 3 . . . . Grunt 24 | . 3 2 4 5 . . 3 . 3 . 4 Brawler 1 | . . . . . . . . . . . 1 Duelist 1 | . . . . . . 1 . . . . . Sentry 4 | . . . 3 . . . . . . . 1 Demolisher 1 | . . . . 1 . . . . . . . Hunter 4 | . . . . . . . . . . . 4 Programmer 2 | . . . . . . . . . 2 . . Assembled 1 | . . . . 1 . . . . . . . Thug 1 | . . . . . . . . . . . 1 Infiltrator 1 | . . . . . . . . . . . 1 Best Kill Streak 6 | . 3 1 6 3 . 4 3 . 2 1 6 Combat Bots Only 5 | . 2 1 5 3 . 1 3 . 2 . 5 Max Kills in Single Turn 2 | . 1 1 2 2 . 1 1 . 2 1 2 Gunslinging 1 | . . . 1 1 . . . . . . . Exploded 2 | . . . . . . . . . . . 2 Melee . | . . . . . . . . . . . . Uniques/NPCs Destroyed . | . . . . . . . . . . . . Combat | -11 -10 -10 -9 -9 -9 -8 -8 -7 -7 -7 -7 -------- Run | Yrd Mat Min Mat Min Exi Min Mat Fac Gar Fac Sto Hostile Shots Fired 566 | . 16 12 97 100 . 4 39 . 38 9 251 Missed 188 | . 3 . 25 28 . 1 9 . 17 3 102 Hits 378 | . 13 12 72 72 . 3 30 . 21 6 149 Melee 5 | . . . . . . 3 . . . . 2 Projectile 373 | . 13 12 72 72 . . 30 . 21 6 147 AOE 12 | . . . . 12 . . . . . . . Critical Strikes 7 | . 1 . 3 . . 1 . . 1 . 1 Damage Taken 4755 | . 178 178 777 1056 . 97 198 . 384 142 1745 Core 1023 | . 40 43 71 167 . . 7 . 35 5 655 Absorbed by Shields . | . . . . . . . . . . . . Ignored by Resistances 156 | . . . 83 . . . 73 . . . . Core Remaining (%) 76 | 100 . 66 . . . 40 98 . . . . Volleys Fired 218 | . 12 13 37 51 . 9 18 . 55 1 22 Largest 2 | . 2 2 2 2 . 2 2 . 2 1 1 Hottest 83 | . 60 40 65 83 . 83 65 . 65 28 36 Shots Fired 395 | . 24 27 59 99 . 18 35 . 110 1 22 Gun 290 | . 24 27 59 85 . 18 18 . 55 1 3 Cannon 86 | . . . . 14 . . 17 . 55 . . Launcher 19 | . . . . . . . . . . . 19 Special . | . . . . . . . . . . . . Kinetic 309 | . 15 27 37 72 . 9 35 . 110 1 3 Thermal 30 | . . . 11 19 . . . . . . . Explosive . | . . . . . . . . . . . . Electromagnetic 56 | . 9 . 11 8 . 9 . . . . 19 Robot Hit Streak 17 | . 6 8 11 5 . 6 11 . 17 . 6 Robot Miss Streak 7 | . 1 3 4 5 . 1 7 . 4 1 2 Penetration Max 1 | . . . . 1 . 1 . . 1 . . Secondary Targets 7 | . 1 . 3 3 . . . . . . . Max Gunslinging Chain 1 | . 1 . 1 1 . . . . . . . Shots Hit Robots 212 | . 17 18 39 44 . 13 15 . 54 . 12 Core Hits 121 | . 10 6 20 19 . 6 9 . 24 . 27 Critical Kills . | . . . . . . . . . . . . Critical Parts Destroyed 2 | . . . 1 . . . . . 1 . . Critical Strikes 2 | . . . 1 . . . . . 1 . . Destroy 2 | . . . 1 . . . . . 1 . . Melee Attacks . | . . . . . . . . . . . . Impact . | . . . . . . . . . . . . Slashing . | . . . . . . . . . . . . Piercing . | . . . . . . . . . . . . Sneak Attacks . | . . . . . . . . . . . . Combat Hostiles . | . . . . . . . . . . . . Follow-up Attacks . | . . . . . . . . . . . . Damage Inflicted 4787 | . 223 188 478 538 . 256 325 . 1320 49 1410 Guns 2321 | . 223 185 471 486 . 256 153 . 510 . 37 Cannons 742 | . . . . 52 . . 172 . 518 . . Explosions 1661 | . . . . . . . . . 292 . 1369 Melee . | . . . . . . . . . . . . Ramming 63 | . . 3 7 . . . . . . 49 4 Kinetic 2567 | . 128 185 302 393 . 169 325 . 1028 . 37 Thermal 280 | . . . 63 104 . . . . . . 113 Explosive 376 | . . . . . . . . . 292 . 84 Electromagnetic 1501 | . 95 . 106 41 . 87 . . . . 1172 Impact . | . . . . . . . . . . . . Slashing . | . . . . . . . . . . . . Piercing . | . . . . . . . . . . . . Highest Corruption 2 | . 2 2 . . . . . . . . 2 Average Corruption 1 | . 2 2 . . . . . . . . 1 Corruption Purged . | . . . . . . . . . . . . Corruption Blocked . | . . . . . . . . . . . . Effects 13 | . 2 11 . . . . . . . . . Message Errors 5 | . . 5 . . . . . . . . . Matter Fused 2 | . 1 1 . . . . . . . . . Heat Flow Errors 1 | . 1 . . . . . . . . . . Parts Rejected 1 | . . 1 . . . . . . . . . Data Loss (minor) 1 | . . 1 . . . . . . . . . Data Loss (major) 2 | . . 2 . . . . . . . . . Misfires 1 | . . 1 . . . . . . . . . Overload Shots . | . . . . . . . . . . . . Overflow Damage 63 | . . . . . . . 6 . . 34 23 Projectiles 6 | . . . . . . . 6 . . . . Explosions 23 | . . . . . . . . . . . 23 Melee 34 | . . . . . . . . . . 34 . Knockbacks 13 | . . . 1 2 . . 3 . 6 1 . Impact 2 | . . . 1 . . . . . . 1 . Kinetic 11 | . . . . 2 . . 3 . 6 . . Secondary . | . . . . . . . . . . . . Self-Inflicted Damage 384 | . . . . . . . . . 25 24 335 Shots 18 | . . . . . . . . . 1 . 17 Rammed 2 | . . . . . . . . . . 1 1 Targets Rammed 6 | . . 1 3 . . . . . . 1 1 Kicked 4 | . . 1 3 . . . . . . . . Crushed . | . . . . . . . . . . . . Highest Temperature 333 | . 216 18 226 208 . 249 333 . 21 . 12 Average Temperature 97 | . 46 9 129 80 . 110 131 . 6 . 3 Received Heat Transfer 1173 | . 117 102 366 90 . . 36 . 135 12 315 Effects 4 | . . . 1 . . . 3 . . . . Energy Bleed 2 | . . . 1 . . . 1 . . . . Interference 2 | . . . . . . . 2 . . . . Siege Activations . | . . . . . . . . . . . . Martial Activations . | . . . . . . . . . . . . Shielding Activations . | . . . . . . . . . . . . Robots Disrupted . | . . . . . . . . . . . . Combat Hostiles . | . . . . . . . . . . . . Robots Corrupted 4 | . . . . . . . . . . 1 3 Combat Hostiles 3 | . . . . . . . . . . . 3 Parts Fried 8 | . . . . . . 1 . . . 1 6 Impact Corruptions 1 | . . . . . . . . . . 1 . Robots Melted . | . . . . . . . . . . . . Combat Hostiles . | . . . . . . . . . . . . Parts Melted 1 | . . . . . . . . . . . 1 Heat Transferred 475 | . . . 150 225 . . . . . . 100 Parts Sabotaged . | . . . . . . . . . . . . Parts Stolen . | . . . . . . . . . . . . Parts Stripped . | . . . . . . . . . . . . Power Chain Reactions 3 | . . . . . . . . . . . 3 Alert | -11 -10 -10 -9 -9 -9 -8 -8 -7 -7 -7 -7 ------- Run | Yrd Mat Min Mat Min Exi Min Mat Fac Gar Fac Sto Maximum Alert Level 5 | . . . . . . . . . 5 4 3 Low Security (%) 51 | 100 100 100 100 100 . 100 100 100 10 . . Level 1 . | . . . . . . . . . 3 . . Level 2 4 | . . . . . . . . . 2 . 81 Level 3 10 | . . . . . . . . . 15 27 18 Level 4 23 | . . . . . . . . . 36 72 . Level 5 8 | . . . . . . . . . 31 . . High Security . | . . . . . . . . . . . . Max Security . | . . . . . . . . . . . . Peak Influence 1916 | . 45 40 105 84 . 55 59 26 1916 1187 850 Initial 1005 | . . 16 . 24 . . 15 26 16 1005 520 Average 589 | . 11 3 36 30 . 41 13 5 1268 1099 577 Influence Increases 4310 | . 82 50 253 360 . 90 151 24 2040 700 560 Destroy 0b10 Robot/C 1900 | . 60 40 200 260 . 60 120 . 740 180 240 Destroy 0b10 Robot/NC 95 | . 10 . 5 . . 15 . . 10 45 10 Destroy Leader 324 | . 12 10 40 50 . 10 10 . 50 70 72 Allied During Kill 1029 | . . . . 35 . 5 . . 742 206 41 Successful Hack 32 | . . . 8 . . . . 24 . . . Disable Machine 285 | . . . . 15 . . . . 45 180 45 Anti-Garrison Action 400 | . . . . . . . . . 400 . . Destroy Structure 140 | . . . . . . . 6 . 53 19 62 Lose Combat Pursuer 105 | . . . . . . . 15 . . . 90 Influence Decreases 3480 | . 40 92 190 391 32 50 132 59 148 1473 873 Entered New Map 1697 | . . 26 . 39 32 . 25 33 8 911 623 Time Decay 1223 | . 30 66 130 272 . 30 107 26 . 422 140 Lost Part 220 | . 10 . 60 80 . . . . . . 70 Lost Ally 340 | . . . . . . 20 . . 140 140 40 Squads Dispatched 16 | . 1 . 2 1 . . 1 . . 6 5 Investigation 7 | . . . 2 1 . . 1 . . 1 2 Extermination 3 | . . . . . . . . . . 3 . Reinforcement 5 | . 1 . . . . . . . . 1 3 Assault 1 | . . . . . . . . . . 1 . Garrison . | . . . . . . . . . . . . Intercept . | . . . . . . . . . . . . Searches Triggered . | . . . . . . . . . . . . Construction Impeded 1 | . . . . . . . . . . 1 . Haulers Reinforced 2 | . . . . . . . . . . . 2 Active Scanning Responses . | . . . . . . . . . . . . Cargo Convoy Interrupts . | . . . . . . . . . . . . Stealth | -11 -10 -10 -9 -9 -9 -8 -8 -7 -7 -7 -7 --------- Run | Yrd Mat Min Mat Min Exi Min Mat Fac Gar Fac Sto Distress Signals 1 | . . . . . . . . . . . 1 Communications Jammed . | . . . . . . . . . . . . Distress Signals . | . . . . . . . . . . . . Times Spotted 115 | . 7 2 13 19 . 3 8 . 27 7 29 Peak Tracking Total 14 | . 5 2 4 4 . 3 4 . 4 2 14 Tactical Retreats 4 | . . . . . . . 1 . . . 3 Traps | -11 -10 -10 -9 -9 -9 -8 -8 -7 -7 -7 -7 ------- Run | Yrd Mat Min Mat Min Exi Min Mat Fac Gar Fac Sto Traps Triggered 8 | . 1 . 1 . . . . . 5 1 . Indirectly . | . . . . . . . . . . . . Trap Hack Attempts . | . . . . . . . . . . . . Triggered . | . . . . . . . . . . . . Disarmed . | . . . . . . . . . . . . Reprogrammed . | . . . . . . . . . . . . Reused . | . . . . . . . . . . . . Traps Extracted . | . . . . . . . . . . . . Installed . | . . . . . . . . . . . . Triggered . | . . . . . . . . . . . . Machines | -11 -10 -10 -9 -9 -9 -8 -8 -7 -7 -7 -7 ---------- Run | Yrd Mat Min Mat Min Exi Min Mat Fac Gar Fac Sto Machines Disabled 26 | . . . . 1 . . . . 10 12 3 Max in Single Turn 2 | . . . . 1 . . . . 2 . 2 Garrison Relay 5 | . . . . . . . . . 5 . . Phase Generator 1 | . . . . . . . . . 1 . . Machines Repaired . | . . . . . . . . . . . . Machines Dismantled . | . . . . . . . . . . . . Machines Sabotaged . | . . . . . . . . . . . . Overloaded Fab Kills . | . . . . . . . . . . . . Hacking | -11 -10 -10 -9 -9 -9 -8 -8 -7 -7 -7 -7 --------- Run | Yrd Mat Min Mat Min Exi Min Mat Fac Gar Fac Sto Machines Accessed 20 | . 2 . 3 1 1 . 2 1 3 4 3 Terminals 15 | . 2 . 3 . . . 2 . 3 2 3 Fabricators 1 | . . . . . . . . . . 1 . Repair Stations . | . . . . . . . . . . . . Recycling Units . | . . . . . . . . . . . . Scanalyzers . | . . . . . . . . . . . . Garrison Access 2 | . . . . . . . . 1 . 1 . Total Hacks 42 | . 5 . 11 1 1 . 5 3 6 6 4 Successful 7 | . . . 1 1 1 . . 1 1 1 1 Failed 35 | . 5 . 10 . . . 5 2 5 5 3 Catastrophic 8 | . . . 3 . . . 2 . 1 1 1 Database Lockouts . | . . . . . . . . . . . . Manual 29 | . 5 . 11 . 1 . 5 . 2 2 3 Terminals 33 | . 5 . 11 . . . 5 . 6 2 4 Fabricators 1 | . . . . . . . . . . 1 . Repair Stations . | . . . . . . . . . . . . Recycling Units . | . . . . . . . . . . . . Scanalyzers . | . . . . . . . . . . . . Garrison Access 6 | . . . . . . . . 3 . 3 . Terminal Hacks 5 | . . . 1 1 1 . . . 1 . 1 Open Door 3 | . . . . 1 . . . . 1 . 1 Branch Access Points 1 | . . . 1 . . . . . . . . Proto ID Catalog 1 | . . . . . 1 . . . . . . Fabricator Hacks 1 | . . . . . . . . . . 1 . Network Status 1 | . . . . . . . . . . 1 . Repair Station Hacks . | . . . . . . . . . . . . Recycling Unit Hacks . | . . . . . . . . . . . . Scanalyzer . | . . . . . . . . . . . . Garrison Access Hacks 1 | . . . . . . . . 1 . . . Unlock Access 1 | . . . . . . . . 1 . . . Unauthorized Hacks . | . . . . . . . . . . . . Terminals . | . . . . . . . . . . . . Fabricators . | . . . . . . . . . . . . Repair Stations . | . . . . . . . . . . . . Recycling Units . | . . . . . . . . . . . . Scanalyzers . | . . . . . . . . . . . . Garrison Access . | . . . . . . . . . . . . Data Cores Recovered 1 | . 1 . . . . . . . . . . Used . | . . . . . . . . . . . . Hacking Detections 16 | . 2 . 3 . . . 2 1 3 3 2 Full Trace Events 5 | . . . 2 . . . 1 . . 1 1 Feedback Events . | . . . . . . . . . . . . Feedback Blocked . | . . . . . . . . . . . . Robot Schematics Acquired . | . . . . . . . . . . . . Robots Built . | . . . . . . . . . . . . Authchips . | . . . . . . . . . . . . Time . | . . . . . . . . . . . . Total Robot Build Rating . | . . . . . . . . . . . . Part Schematics Acquired . | . . . . . . . . . . . . Parts Built . | . . . . . . . . . . . . Authchips . | . . . . . . . . . . . . Time . | . . . . . . . . . . . . Total Part Build Rating . | . . . . . . . . . . . . Parts Repaired . | . . . . . . . . . . . . Time . | . . . . . . . . . . . . Parts Recycled . | . . . . . . . . . . . . Recycled Matter . | . . . . . . . . . . . . Retrieved Matter . | . . . . . . . . . . . . Retrieved Components . | . . . . . . . . . . . . Parts Scanalyzed . | . . . . . . . . . . . . Part Schematics Acquired . | . . . . . . . . . . . . Parts Damaged . | . . . . . . . . . . . . Bothacking | -11 -10 -10 -9 -9 -9 -8 -8 -7 -7 -7 -7 ------------ Run | Yrd Mat Min Mat Min Exi Min Mat Fac Gar Fac Sto Used RIF Installer . | . . . . . . . . . . . . Robots Hacked . | . . . . . . . . . . . . Non-combat . | . . . . . . . . . . . . Combat . | . . . . . . . . . . . . Robot Hacks Applied . | . . . . . . . . . . . . Relay Couplers Released 18 | . . . . . . . . . 18 . . Machine Destruction 18 | . . . . . . . . . 18 . . Fabnet Peak Effective % . | . . . . . . . . . . . . Robots Rewired . | . . . . . . . . . . . . Allies Hacked 1 | . . . . . . . . . 1 . . Hacks Repelled . | . . . . . . . . . . . . Allies | -11 -10 -10 -9 -9 -9 -8 -8 -7 -7 -7 -7 -------- Run | Yrd Mat Min Mat Min Exi Min Mat Fac Gar Fac Sto Total Allies 10 | . . . . 6 . . . . 4 . . Largest Group 6 | . . . . 6 6 2 1 . 4 3 3 Highest-Rated Group 213 | . . . . 117 117 32 16 . 213 188 174 Highest-Rated Ally 95 | . . . . 31 31 16 16 . 95 95 90 Initial Warlord ECA Mod 20 | . . . . . . . . . . 10 10 Total Orders 16 | . . . . . . . . . 16 . . FOLLOW 2 | . . . . . . . . . 2 . . RETURN 14 | . . . . . . . . . 14 . . Ally Attacks 331 | . . . . 7 . 9 1 . 187 90 37 Total Damage 5773 | . . . . 77 . 106 . . 3018 2099 473 Kills 63 | . . . . 2 . 2 . . 36 21 2 Allies Corrupted 1 | . . . . . . . . . . 1 . Allies Melted 1 | . . . . . . . . . 1 . . Intel | -11 -10 -10 -9 -9 -9 -8 -8 -7 -7 -7 -7 ------- Run | Yrd Mat Min Mat Min Exi Min Mat Fac Gar Fac Sto Active Infowar (turns) . | . . . . . . . . . . . . Robot Analysis Total . | . . . . . . . . . . . . Derelict Logs Recovered 3 | . . 1 . 2 . . . . . . . Drone Launches 40 | . . . . . . . . . 36 4 . Drone Recoveries 10 | . . . . . . . . . 10 . . Exploration | -11 -10 -10 -9 -9 -9 -8 -8 -7 -7 -7 -7 ------------- Run | Yrd Mat Min Mat Min Exi Min Mat Fac Gar Fac Sto Turns Passed 6066 | 65 159 671 337 895 484 60 378 164 1518 1037 298 Spaces Moved 3955 | 43 93 499 174 652 405 27 188 129 832 727 186 Core 19 | 8 . . . . . . . . . . 11 Treads . | . . . . . . . . . . . . Legs 832 | 35 93 499 174 31 . . . . . . . Wheels 3104 | . . . . 621 405 27 188 129 832 727 175 Hover . | . . . . . . . . . . . . Flight . | . . . . . . . . . . . . Fastest Speed 50 | 50 120 120 120 80 105 105 110 125 140 140 50 Average Speed 125 | 113 120 120 121 106 111 112 118 125 140 140 125 Slowest Speed 190 | 120 120 120 190 190 120 120 125 125 140 140 140 Overloaded Moves . | . . . . . . . . . . . . Propulsion Burnouts . | . . . . . . . . . . . . Robots Hopped . | . . . . . . . . . . . . Potential Cave-ins . | . . . . . . . . . . . . Cave-ins Triggered . | . . . . . . . . . . . . Exploration Rate (%) 44 | 4 23 99 28 97 69 14 22 7 97 25 51 Regions Visited 11 Branch Regions 5 Pre-discovered Areas 2 | . . 1 . . . . . . . . 1 Known Exits Taken 3 | . . . 1 . . . . 1 . 1 . Unknown Exits Taken 7 | 1 1 1 . 1 1 1 1 . . . . Scrap Searched 3 | . . 1 . 2 . . . . . . . Spaces Dug . | . . . . . . . . . . . . Terrain Destroyed 136 | . . . . . . . 6 . 68 . 62 Melee . | . . . . . . . . . . . . Projectile 6 | . . . . . . . 6 . . . . AOE 130 | . . . . . . . . . 68 . 62 Terrain Rammed . | . . . . . . . . . . . . Walls Destroyed . | . . . . . . . . . . . . Machines Disabled . | . . . . . . . . . . . . Actions | -11 -10 -10 -9 -9 -9 -8 -8 -7 -7 -7 -7 --------- Run | Yrd Mat Min Mat Min Exi Min Mat Fac Gar Fac Sto Total 4691 | 55 116 547 240 757 438 38 307 131 1087 747 228 Wait 320 | . 9 27 1 24 22 . 95 . 129 . 13 Move 3943 | 42 92 498 173 651 404 26 187 129 829 726 186 Hop . | . . . . . . . . . . . . Pick Up 60 | 6 1 3 5 9 6 . 2 . 26 2 . Fast Attach 34 | 6 . 2 7 7 . 2 3 1 . 5 1 Attach 14 | . 1 . 5 5 . . . . 1 . 2 Detach 3 | . . . . 1 . . 2 . . . . Swap 12 | 1 1 1 2 3 1 . . . 1 2 . Drop 56 | . . 2 7 6 5 1 . 1 21 10 3 Fire 218 | . 12 13 37 51 . 9 18 . 55 1 22 Melee . | . . . . . . . . . . . . Ram 2 | . . . . . . . . . . 1 1 Kick 4 | . . 1 3 . . . . . . . . Crush . | . . . . . . . . . . . . Escape Stasis 24 | . . . . . . . . . 24 . . Rewire 1 | . . . . . . . . . 1 . . Trap . | . . . . . . . . . . . . Miscellaneous . | . . . . . . . . . . . . Route ------- -11/Scrapyard -10/Materials (discovered 2 exits: [*Min x2]) -10/Mines (discovered 3 exits: *Mat x2 / [*Sub]) -9/Materials -9/Mines (discovered 4 exits: *Mat x2 / *Exi / [*Zio]) -9/Exiles -8/Mines -8/Materials -7/Factory (discovered 2 exits: Sto / Gar) -7/Garrison (discovered 3 exits: *Fac x3) -7/Factory -7/Storage History --------- Turn | Location | Event 11 | -11/Scrapyard | Discovered new exit (range 15) 66 | -11/Scrapyard | Entered Materials 66 | -10/Materials | Discovered new exit (range 14) 193 | -10/Materials | Discovered new exit (range 15) 225 | -10/Materials | Entered Mines 231 | -10/Mines | Met a Derelict bent on vengeance 237 | -10/Mines | Discovered new exit (range 10) 306 | -10/Mines | Build established: Mutant 504 | -10/Mines | Discovered new exit (range 5) 535 | -10/Mines | Discovered new exit (range 10) 671 | -10/Mines | Learned location of Zion (-7) 896 | -10/Mines | Entered Materials 896 | -9/Materials | Evolved 2 slots: Propulsion x1, Utility x1 1076 | -9/Materials | Lost 6 parts (1p1n1u3w) 1153 | -9/Materials | Identified exit to Mines 1233 | -9/Materials | Entered Mines 1291 | -9/Mines | Assembled infested the area 1381 | -9/Mines | Lost 6 parts (2n2u2w) 1420 | -9/Mines | Met a Derelict shopkeep closing up shop 1434 | -9/Mines | Core integrity fell below 50% 1645 | -9/Mines | Discovered new exit (range 12) 1661 | -9/Mines | Assisted by bots powering up and referring to "LRC-V3" 1798 | -9/Mines | A Derelict revealed a hidden shortcut to a safe place 1899 | -9/Mines | Received a Mining Laser from a helpful Derelict 1928 | -9/Mines | Learned Materials terminal intel 2011 | -9/Mines | Discovered new exit (range 4) 2106 | -9/Mines | Deemed a non-threat by the Exiles lab entrance 2106 | -9/Mines | Discovered new exit (range 5) 2128 | -9/Mines | Entered Exiles 2128 | -9/Exiles | Accompanied by 6 allies 2155 | -9/Exiles | Met 8R-AWN 2158 | -9/Exiles | Led the pair of lost Derelicts to a safe place 2170 | -9/Exiles | Met EX-HEX 2203 | -9/Exiles | Met EX-BIN 2218 | -9/Exiles | Aligned with FarCom system 2219 | -9/Exiles | Given EX-Vault access code 2244 | -9/Exiles | Opened EX-Vault 2272 | -9/Exiles | Warned to stay clear of 0b10 Research branches 2301 | -9/Exiles | Met EX-DEC 2470 | -9/Exiles | Found Army-in-a-Box 2577 | -9/Exiles | Discovered new exit (range 12) 2612 | -9/Exiles | Left Exiles lab with Army-in-a-Box 2612 | -9/Exiles | Entered Mines 2612 | -8/Mines | Accompanied by 3 allies 2663 | -8/Mines | Discovered new exit (range 7) 2672 | -8/Mines | Entered Materials 2672 | -8/Materials | Accompanied by 1 ally 2672 | -8/Materials | Evolved 2 slots: Utility x2 2673 | -8/Materials | Loaded intel: 11 terminal locations 3030 | -8/Materials | Discovered new exit (range 10) 3050 | -8/Materials | Entered Factory 3050 | -7/Factory | Evolved 2 slots: Utility x2 3051 | -7/Factory | Identified exit to Storage 3214 | -7/Factory | Identified exit to Garrison 3214 | -7/Factory | Entered Garrison 3229 | -7/Garrison | Heavy support dispatched to Factory 3286 | -7/Garrison | Triggered checkpoint 3291 | -7/Garrison | Garrison Relay disabled 3426 | -7/Garrison | Triggered checkpoint 3464 | -7/Garrison | Triggered checkpoint 3468 | -7/Garrison | Phase Generator disabled 3483 | -7/Garrison | Discovered new exit (range 8) 3497 | -7/Garrison | Lost 8 allies 3500 | -7/Garrison | Triggered checkpoint 3555 | -7/Garrison | Garrison Relay disabled 3570 | -7/Garrison | Found embedded Infiltrators 3722 | -7/Garrison | Triggered checkpoint 3756 | -7/Garrison | Garrison Relay disabled 3807 | -7/Garrison | Discovered new exit (range 15) 3892 | -7/Garrison | Rescued a captive Derelict 3893 | -7/Garrison | Rescued a captive Derelict 3994 | -7/Garrison | Triggered checkpoint 4055 | -7/Garrison | Garrison Relay disabled 4190 | -7/Garrison | Discovered new exit (range 15) 4236 | -7/Garrison | Triggered checkpoint 4261 | -7/Garrison | Heavy support dispatched to Factory 4268 | -7/Garrison | Garrison Relay disabled 4569 | -7/Garrison | Attempted to access garrison exit controls, blocked by remote lockdown 4732 | -7/Garrison | Entered Factory 4732 | -7/Factory | Accompanied by 17 allies 5035 | -7/Factory | Lost 3 allies 5209 | -7/Factory | Discovered exit to Storage (range 8) 5226 | -7/Factory | Allied Derelicts emerged from ambush trap array 5532 | -7/Factory | First assault squad dispatched 5574 | -7/Factory | Lost 3 allies 5769 | -7/Factory | Entered Storage 5769 | -7/Storage | Accompanied by 6 allies 5844 | -7/Storage | Learned location of Armory (-4) 5979 | -7/Storage | Lost 5 allies 6057 | -7/Storage | Core integrity fell below 50% 6063 | -7/Storage | Core integrity fell below 20% 6067 | -7/Storage | Self-destructed Last Messages --------------- 06011_ U-05 Engineer destroyed. 06013_ A-02 Transporter destroyed. 06013_ Chain reaction triggered in Corrupted Ion Engine. 06013_ Arm. Wheel destroyed. 06022_ Compression Vault explodes. 06023_ Y-54 Guardian system terminally corrupted. 06027_ The unstable cave ceiling collapses. 06028_ Adv. EMP Blaster destroyed. 06031_ K-01 Serf collects debris. 06046_ Arm. Huge Wheel destroyed. 06046_ Imp. Light Armor Plating destroyed. 06050_ Slammed into Y-54 Guardian. 06052_ K-01 Serf destroyed. 06053_ K-01 Serf collects debris. 06056_ Datajack destroyed. 06056_ K-01 Serf collects debris. 06060_ Arm. Huge Wheel destroyed. 06061_ Dropped Hcp. Storage Unit. Map ----- +----------------------------------------------------+ | #????# """ ""????????? #????????????????? ? | | ##???# """ ?????????? ?????????????????? ? | | #####? ??????????"" ?????????????????????? | | ####+######?????? ????? ##??????????????? | | #????##+##+## #??????????????? | | ######%= #??????????????? | | # ! #??????????????? | | # ####+########### ##### #??????????????? | | ### ##? ????????# #???????????????????????? | | ??# #? """"??????## Y##??????????????????????? | | ??# ## """" ????# #??????????????????????? | | ??# ## """" #???# #??????????????????????? | | ??# ## """" ?#???#!!! #??????????????????????? | | ??# ## ??????????#!!!!#??????????????????????? | | ??# # ??????????##!!##??????????????????????? | | ??# ## ????????????#!!#???????????????????????? | | ??# ####????????????#!!#???????????????????????? | | ??# #???????????????#s #???????????????????????? | | ?? ??????????????## ##??????????????????????? | | ?? ??????????????# Ys ##########+????????????? | | ?? ??????????????# ?????????? | | ?? ??????????????# s ?????????? | | ?? #?????????????# ###########????????????? | | ???# #???????????????## #######?????????????????? | | ??????????????????????# #! #?????????????????? | | ??????????????????????# @ #?????????????????? | | ?????????????????# # ! #?????????????????? | | ?????????????????# # % #?????????????????? | | ?????????????????# #? #?????????????????? | | ?????????????????# #? #?????????????????? | | ?????????????????+ #?? ! #?????????????????? | | ?????????????????# +?? #?????????????????? | | ???????????????? k ######??? #?????????????????? | | ???????????????###+#????????? #?????????????????? | | ?????????????????????????????? #?????????????????? | | ?????????????????????????????? #?????????????????? | | ???????????????????????????????#?????????????????? | | ?????????????????????????????????????????????????? | | ?????????????????????????????????????????????????? | | ?????????????????????????????????????????????????? | | ?????????????????????????????????????????????????? | | ?????????????????????????????????????????????????? | | ?????????????????????????????????????????????????? | | ?????????????????????????????????????????????????? | | | | | | | | | | | | | +----------------------------------------------------+ Best States ------------- Heat Dissipation 42 Energy Generation 16 Energy Capacity 290 Matter Stores 300 Matter Capacity 300 Sight Range 16 Terrain Scan Density 10 Armor Coverage 525 Resistance: KI 30 Resistance: TH 10 Core Shielding 20 Evasion (%) 55 Item Schematics ----------------- None Robot Schematics ------------------ None Fabricated ------------ Nothing Repaired ---------- Nothing Alien Tech Used ----------------- None Achievements -------------- None Challenges ------------ None Game ------ Seed RiotLatentExtractor Manual? 0 Play Time 00:50:37 Cumulative 111.7 hours Start 2025.05.09 @ 10:31:45 End 2025.05.09 @ 11:20:49 Sessions 1 Manual Loads 0 Difficulty Rogue Special Mode None Game No. 95 Rogue 95 Adventurer 0 Explorer 0 Win Type - Total 1 Types 1/0/0/0/0/0/0/0/0/0 Lore% 47 Gallery% 46 Achievement% 43 Wizard Run 0 Options --------- Layout 1 ASCII 0 Keyboard 0 Movement Mouse Keybinds 0 Fullscreen 1 Font 24/Smallcaps Map View 50x35 Zoom Use 0% Tactical HUD 1 Map Filters NONE Filters NONE Steam 1 RUN: b630d9d0-ecdd-47f5-8189-481150d3b86e